fUST/lending_fUST_20260107
["ID","MTS","AMOUNT","RATE_DAILY","PERIOD"]
[400561192,1767720640904,-343.49392703,0.00013699,2]
[400561193,1767720640916,-500.0,0.00013699,2]
[400561194,1767720640929,-500.0,0.00013699,2]
[400561195,1767720640939,-351.22077635,0.00013699,2]
[400561196,1767720640949,-600.0,0.00013702,2]
[400561197,1767720640959,-11666.0,0.00013755,2]
[400561198,1767720640968,-292.0,0.00013756,2]
[400561199,1767720640977,-500.0,0.00013821,2]
[400561200,1767720640987,-500.0,0.00013821,2]
[400561201,1767720640997,-500.0,0.00013821,2]
[400561202,1767720641007,-500.0,0.00013821,2]
[400561203,1767720641016,-1000.0,0.00013821,2]
[400561204,1767720641025,-451.84390246,0.00013821,2]
[400561205,1767720641035,-500.0,0.00013821,2]
[400561206,1767720641044,-1000.0,0.00013821,2]
[400561207,1767720641053,-500.0,0.00013821,2]
[400561208,1767720641063,-1000.0,0.00013821,2]
[400561209,1767720641073,-500.0,0.00013821,2]
[400561210,1767720641084,-500.0,0.00013821,2]
[400561211,1767720641093,-1002.10613281,0.00013821,2]
[400561212,1767720641102,-500.0,0.00013821,2]
[400561213,1767720641111,-500.0,0.00013821,2]
[400561214,1767720641120,-500.0,0.00013821,2]
[400561215,1767720641130,-500.0,0.00013821,2]
[400561216,1767720641140,-500.0,0.00013821,2]
[400561217,1767720641150,-500.0,0.00013821,2]
[400561218,1767720641159,-500.66535863,0.00013821,2]
[400561219,1767720641168,-500.66277805,0.00013821,2]
[400561220,1767720641178,-500.0,0.00013821,2]
[400561221,1767720641187,-500.0,0.00013821,2]
[400561222,1767720641197,-500.0,0.00013821,2]
[400561223,1767720641207,-500.0,0.00013821,2]
[400561224,1767720641216,-500.0,0.00013821,2]
[400561225,1767720641226,-500.0,0.00013821,2]
[400561226,1767720641236,-494.63820199,0.00013821,2]
[400561227,1767720641247,-500.0,0.00013821,2]
[400561228,1767720641256,-500.0,0.00013821,2]
[400561229,1767720641266,-500.0,0.00013821,2]
[400561230,1767720641275,-500.0,0.00013821,2]
[400561231,1767720641284,-1000.0,0.00013821,2]
[400561232,1767720641294,-1000.0,0.00013821,2]
[400561233,1767720641303,-198.64498703,0.00013821,2]
[400561234,1767720641313,-7838.77162275,0.0001386,2]
[400561235,1767720641322,-11666.0,0.00013892,2]
[400561236,1767720641333,-11666.0,0.00014029,2]
[400561237,1767720641342,-420.0,0.00014035,2]
[400561238,1767720641352,-11666.0,0.00014166,2]
[400561239,1767720641361,-176.95978094,0.00014175,2]
[400561240,1767720641371,-600.0,0.00014221,2]
[400561241,1767720641381,-226.25377569,0.00014233,2]
[400561242,1767720641391,-1001.57471188,0.00014247,2]
[400561243,1767720641400,-639.63755637,0.00014247,2]
[400561244,1767720641410,-443.89072638,0.00014247,2]
[400561245,1767720641420,-500.0,0.00014247,2]
[400561246,1767720641429,-1000.0,0.00014247,2]
[400561247,1767720641438,-501.0386878,0.00014247,2]
[400561248,1767720641448,-1000.0,0.00014247,2]
[400561249,1767720641457,-500.84667986,0.00014247,2]
[400561250,1767720641466,-500.81877837,0.00014247,2]
[400561251,1767720641476,-1000.0,0.00014247,2]
[400561252,1767720641486,-1000.0,0.00014247,2]
[400561253,1767720641499,-500.54517436,0.00014247,2]
[400561254,1767720641509,-11666.0,0.00014303,2]
[400561255,1767720641518,-502.25371869,0.00014368,2]
[400561256,1767720641527,-1500.0,0.00014368,2]
[400561257,1767720641537,-1500.0,0.00014368,2]
[400561258,1767720641546,-1500.0,0.00014368,2]
[400561259,1767720641555,-11666.0,0.0001444,2]
[400561260,1767720641567,-11666.0,0.00014577,2]
[400561261,1767720641576,-11666.0,0.00014714,2]
[400561262,1767720641586,-900.0,0.00014768,2]
[400561263,1767720641595,-692.18736728,0.00014795,2]
[400561264,1767720641604,-1500.0,0.00014795,2]
[400561265,1767720641616,-1500.0,0.00014795,2]
[400561266,1767720641626,-533.7772006,0.00014795,2]
[400561267,1767720641635,-500.0,0.00014828,2]
[400561268,1767720641645,-500.0,0.00014828,2]
[400561269,1767720641654,-500.0,0.00014828,2]
[400561270,1767720641663,-500.0,0.00014828,2]
[400561271,1767720641673,-500.0,0.00014828,2]
[400561272,1767720641682,-500.0,0.00014828,2]
[400561273,1767720641692,-500.0,0.00014828,2]
[400561274,1767720641701,-500.0,0.00014828,2]
[400561275,1767720641710,-500.0,0.00014828,2]
[400561276,1767720641719,-500.0,0.00014828,2]
[400561277,1767720641728,-500.0,0.00014828,2]
[400561278,1767720641738,-500.0,0.00014828,2]
[400561279,1767720641748,-500.0,0.00014828,2]
[400561280,1767720641757,-500.0,0.00014828,2]
[400561281,1767720641766,-500.0,0.00014828,2]
[400561282,1767720641776,-500.0,0.00014828,2]
[400561283,1767720641785,-511.14869574,0.00014828,2]
[400561284,1767720641794,-11666.0,0.00014851,2]
[400561285,1767720641803,-100000.0,0.00014882,2]
[400561286,1767720641812,-1041.38457236,0.00014916,2]
[400561287,1767720641822,-1887.16845353,0.00014916,2]
[400561288,1767720641832,-2000.0,0.00014916,2]
[400561289,1767720641841,-11666.0,0.00014988,2]
[400561290,1767720641850,-1000.0,0.00015,2]
[400561291,1767720641860,-2412.43259168,0.00015,2]
[400561292,1767720641870,-10987.96789992,0.0001501,2]
[400561293,1767720641879,-321.75226688,0.00015061,2]
[400561294,1767720641888,-720.0,0.00015072,2]
[400561295,1767720641898,-11666.0,0.00015125,2]
[400561296,1767720641907,-1041.66666667,0.00015232,2]
[400561297,1767720641917,-11666.0,0.00015262,2]
[400561298,1767720641926,-589.37550664,0.00015316,2]
[400561299,1767720641935,-2000.0,0.00015342,2]
[400561300,1767720641944,-1006.10461326,0.00015342,2]
[400561301,1767720641953,-587.0,0.00015395,2]
[400561302,1767720641962,-11666.0,0.00015399,2]
[400561303,1767720641971,-556.89714871,0.00015464,2]
[400561304,1767720641981,-11666.0,0.00015536,2]
[400561305,1767720641991,-290.08713105,0.00015669,3]
[400561306,1767720642000,-11666.0,0.00015673,2]
[400561307,1767720642010,-11666.0,0.0001581,2]
[400561308,1767720642019,-2500.0,0.0001589,2]
[400561309,1767720642028,-7838.0,0.00015939,2]
[400561310,1767720642038,-11685.51444523,0.00015947,2]
[400561311,1767720642048,-10115.60945091,0.00016334,2]
[400561312,1767720642057,-183.3,0.00016438,2]
[400561313,1767720642067,-3000.0,0.00016438,2]
[400561314,1767720642076,-864.0,0.00016579,2]
[400561315,1767720642086,-475.0,0.00016621,2]
[400561316,1767720642094,-475.0,0.00016621,2]
[400561317,1767720642104,-475.0,0.00016621,2]
[400561318,1767720642113,-475.0,0.00016621,2]
[400561319,1767720642122,-475.0,0.00016621,2]
[400561320,1767720642131,-475.0,0.00016621,2]
[400561321,1767720642141,-475.0,0.00016621,2]
[400561322,1767720642150,-475.0,0.00016621,2]
[400561323,1767720642159,-475.0,0.00016621,2]
[400561324,1767720642168,-475.0,0.00016621,2]
[400561325,1767720642177,-475.0,0.00016621,2]
[400561326,1767720642187,-475.0,0.00016621,2]
[400561327,1767720642196,-475.0,0.00016621,2]
[400561328,1767720642205,-475.0,0.00016621,2]
[400561329,1767720642216,-475.0,0.00016621,2]
[400561330,1767720642226,-475.0,0.00016621,2]
[400561331,1767720642235,-475.0,0.00016621,2]
[400561332,1767720642245,-475.0,0.00016621,2]
[400561333,1767720642255,-475.0,0.00016621,2]
[400561334,1767720642264,-475.0,0.00016621,2]
[400561335,1767720642273,-475.0,0.00016621,2]
[400561336,1767720642282,-475.0,0.00016621,2]
[400561337,1767720642292,-475.0,0.00016621,2]
[400561338,1767720642301,-475.0,0.00016621,2]
[400561339,1767720642311,-475.0,0.00016621,2]
[400561340,1767720642320,-475.0,0.00016621,2]
[400561341,1767720642330,-475.0,0.00016621,2]
[400561342,1767720642339,-475.0,0.00016621,2]
[400561343,1767720642348,-475.0,0.00016621,2]
[400561344,1767720642358,-475.0,0.00016621,2]
[400561345,1767720642368,-475.0,0.00016621,2]
[400561346,1767720642376,-475.0,0.00016621,2]
[400561347,1767720642386,-475.0,0.00016621,2]
[400561348,1767720642396,-475.0,0.00016621,2]
[400561349,1767720642405,-475.0,0.00016621,2]
[400561350,1767720642414,-475.0,0.00016621,2]
[400561351,1767720642424,-475.0,0.00016621,2]
[400561352,1767720642434,-475.0,0.00016621,2]
[400561353,1767720642443,-475.0,0.00016621,2]
[400561354,1767720642453,-475.0,0.00016621,2]
[400561355,1767720642462,-475.0,0.00016621,2]
[400561356,1767720642472,-475.0,0.00016621,2]
[400561357,1767720642481,-475.0,0.00016621,2]
[400561358,1767720642491,-475.0,0.00016621,2]
[400561359,1767720642505,-475.0,0.00016621,2]
[400561360,1767720642515,-475.0,0.00016621,2]
[400561361,1767720642524,-475.0,0.00016621,2]
[400561362,1767720642535,-475.0,0.00016621,2]
[400561363,1767720642544,-475.0,0.00016621,2]
[400561364,1767720642554,-475.0,0.00016621,2]
[400561365,1767720642563,-475.0,0.00016621,2]
[400561366,1767720642575,-475.0,0.00016621,2]
[400561367,1767720642586,-475.0,0.00016621,2]
[400561368,1767720642595,-475.0,0.00016621,2]
[400561369,1767720642605,-475.0,0.00016621,2]
[400561370,1767720642614,-475.0,0.00016621,2]
[400561371,1767720642626,-475.0,0.00016621,2]
[400561372,1767720642635,-475.0,0.00016621,2]
[400561373,1767720642644,-823.0,0.00016886,2]
[400561374,1767720642653,-1418.71659724,0.00016986,2]
[400561375,1767720642662,-61162.51963186,0.00017,2]
[400561376,1767720642671,-163349.36340269,0.00017,7]
[400561377,1767720642680,-364.33712573,0.00017061,2]
[400561378,1767720642689,-365.67824753,0.00017105,6]
[400561379,1767720642699,-2895.16188097,0.00017998,2]
[400561380,1767720642708,-68830.82713632,0.00018,5]
[400561381,1767720642718,-2999.999999,0.00018,2]
[400561382,1767720642727,-151.0,0.00018,2]
[400561383,1767720642736,-151.0,0.00018,2]
[400561384,1767720642745,-151.0,0.00018,2]
[400561385,1767720642754,-183.3,0.00018211,2]
[400561386,1767720642764,-1000.0,0.00018237,2]
[400561387,1767720642774,-301.0,0.00018523,2]
[400561388,1767720642783,-451.41951422,0.00018541,9]
[400561389,1767720642792,-163.06318377,0.00018681,2]
[400561390,1767720642802,-42279.56725066,0.000189,2]
[400561391,1767720642811,-303.3791891,0.000189,2]
[400561392,1767720642820,-406.92198458,0.00019061,2]
[400561393,1767720642830,-303.3791891,0.00019089,2]
[400561394,1767720642839,-151.0,0.00019178,2]
[400561395,1767720642848,-151.0,0.00019178,2]
[400561396,1767720642858,-191.004961,0.00019178,2]
[400561397,1767720642867,-151.0,0.00019178,2]
[400561398,1767720642875,-151.0,0.00019178,2]
[400561399,1767720642884,-151.0,0.00019178,2]
[400561400,1767720642894,-441.104087,0.00019178,2]
[400561401,1767720642903,-441.104087,0.00019178,2]
[400561402,1767720642912,-151.0,0.00019178,2]
[400561403,1767720642921,-441.104087,0.00019178,2]
[400561404,1767720642929,-441.104087,0.00019178,2]
[400561405,1767720642939,-176.786529,0.00019178,2]
[400561406,1767720642948,-176.786529,0.00019178,2]
[400561407,1767720642957,-176.786529,0.00019178,2]
[400561408,1767720642966,-176.786529,0.00019178,2]
[400561409,1767720642975,-151.0,0.00019178,2]
[400561410,1767720642985,-151.0,0.00019178,2]
[400561411,1767720642994,-151.0,0.00019178,2]
[400561412,1767720643003,-151.0,0.00019178,2]
[400561413,1767720643013,-264.296067,0.00019178,2]
[400561414,1767720643022,-151.0,0.00019178,2]
[400561415,1767720643031,-151.0,0.00019178,2]
[400561416,1767720643040,-151.0,0.00019178,2]
[400561417,1767720643050,-224.055312,0.00019178,2]
[400561418,1767720643060,-151.0,0.00019178,2]
[400561419,1767720643069,-151.0,0.00019178,2]
[400561420,1767720643079,-164.05427,0.00019178,2]
[400561421,1767720643089,-900.0,0.00019178,2]
[400561422,1767720643099,-228.78,0.000192,2]
[400561423,1767720643108,-268.84,0.000192,2]
[400561424,1767720643118,-2760.87,0.000192,2]
[400561425,1767720643127,-24466.81,0.000192,2]
[400561427,1767720643136,-167.75,0.000192,2]
[400561428,1767720643145,-497.28977626,0.00019205,5]
[400561429,1767720643154,-303.3791891,0.00019278,2]
[400561430,1767720643164,-303.3791891,0.00019467,2]
[400561432,1767720643173,-273.0,0.00019589,3]
[400561433,1767720643182,-303.3791891,0.00019656,2]
[400561434,1767720643191,-11034.61992399,0.00019724,2]
[400561435,1767720643200,-648.93473211,0.00019726,2]
[400561436,1767720643210,-2000.0,0.00019815,3]
[400561437,1767720643219,-2000.0,0.00019824,3]
[400561438,1767720643228,-2000.0,0.00019832,3]
[400561439,1767720643237,-10115.60945091,0.00019836,2]
[400561440,1767720643247,-2000.0,0.00019841,3]
[400561441,1767720643255,-2000.0,0.00019842,3]
[400561442,1767720643265,-455.06878365,0.00019845,4]
[400561443,1767720643274,-546.2262413,0.00019978,11]
[400561444,1767720643283,-183.3,0.00019983,2]
[400561445,1767720643294,-2000.0,0.00019998,7]
[400561446,1767720643303,-1815.44742593,0.0002,2]
[400561447,1767720643313,-300.00038009,0.0002,7]
[400561448,1767720643322,-455.06878365,0.00020034,4]
[400561449,1767720643333,-1000.0,0.00020061,2]
[400561450,1767720643342,-244.0,0.00020061,2]
[400561451,1767720643351,-455.06878365,0.00020223,4]
[400561452,1767720643359,-455.06878365,0.00020412,4]
[400561453,1767720643369,-455.22065395,0.00020601,4]
[400561454,1767720643378,-2436.38343228,0.00020921,2]
[400561455,1767720643388,-2000.0,0.00020999,7]
[400561456,1767720643397,-277.05120127,0.00021,2]
[400561457,1767720643407,-1081.20658707,0.00021,10]
[400561458,1767720643417,-27032.71808146,0.00021,2]
[400561459,1767720643427,-500.0,0.00021,7]
[400561460,1767720643437,-449.50684344,0.00021061,2]
[400561461,1767720643448,-2436.38343228,0.00021129,2]
[400561462,1767720643459,-168.0,0.00021233,4]
[400561463,1767720643469,-649.3021304,0.00021414,14]
[400561464,1767720643478,-2436.38343228,0.00021572,2]
[400561465,1767720643487,-11034.61992398,0.00021682,2]
[400561466,1767720643501,-14767.19608632,0.000217,3]
[400561467,1767720643510,-2436.38343228,0.00021728,2]
[400561468,1767720643519,-183.3,0.00021756,2]
[400561469,1767720643531,-417.0,0.00021802,2]
[400561470,1767720643540,-714.0,0.00021802,2]
[400561471,1767720643549,-194.752,0.00021802,2]
[400561472,1767720643667,-568.06899724,0.0002196,10]
[400561473,1767720643678,-467.41071652,0.00021989,2]
[400561474,1767720643687,-534.78502732,0.00021989,2]
[400561475,1767720643695,-2139.14010928,0.00021989,2]
[400561476,1767720643704,-4813.06524587,0.00021989,2]
[400561477,1767720643713,-1158.99254196,0.00021989,2]
[400561478,1767720643723,-2607.73321941,0.00021989,2]
[400561479,1767720643732,-4635.97016784,0.00021989,2]
[400561480,1767720643741,-7243.70338725,0.00021989,2]
[400561481,1767720643750,-10430.93287764,0.00021989,2]
[400561482,1767720643759,-2000.0,0.00021999,7]
[400561483,1767720643768,-203.01,0.00021999,2]
[400561484,1767720643778,-305.51,0.00022,2]
[400561485,1767720643787,-3648.82,0.00022,7]
[400561486,1767720643796,-84987.34441726,0.00022,2]
[400561487,1767720643805,-171.83181526,0.00022,10]
[400561488,1767720643816,-19696.50350082,0.00022,7]
[400561489,1767720643825,-1000.0,0.00022067,10]
[400561490,1767720643837,-492.0,0.00022067,10]
[400561491,1767720643847,-608.0,0.00022129,2]
[400561492,1767720643857,-2436.38343228,0.00022191,2]
[400561493,1767720643866,-608.0,0.00022245,2]
[400561494,1767720643876,-2436.38343228,0.00022411,2]
[400561495,1767720643886,-300.0,0.00022466,2]
[400561496,1767720643895,-608.0,0.00022577,2]
[400561497,1767720643905,-608.0,0.00022595,2]
[400561498,1767720643915,-156.04,0.00022642,2]
[400561499,1767720643924,-2436.38343228,0.00022717,2]
[400561500,1767720643933,-760.03020554,0.0002285,17]
[400561501,1767720643943,-171.0,0.00022877,8]
[400561502,1767720643952,-608.0,0.00022884,2]
[400561503,1767720643961,-2436.38343228,0.00022889,2]
[400561504,1767720643970,-608.0,0.00022987,2]
[400561505,1767720643980,-2000.0,0.00022999,7]
[400561506,1767720643990,-1041.66666667,0.00023,3]
[400561507,1767720644001,-450.0,0.00023014,2]
[400561508,1767720644011,-608.0,0.00023036,2]
[400561510,1767720644021,-492.09170229,0.00023061,2]
[400561512,1767720644031,-608.0,0.00023127,2]
[400561515,1767720644040,-608.0,0.00023148,2]
[400561517,1767720644050,-2100.0,0.00023168,2]
[400561519,1767720644059,-2100.0,0.00023181,2]
[400561520,1767720644068,-2436.38343228,0.00023184,2]
[400561521,1767720644079,-500.0,0.00023223,2]
[400561522,1767720644088,-2100.0,0.0002324,2]
[400561523,1767720644097,-2100.0,0.00023298,2]
[400561524,1767720644107,-608.0,0.00023311,2]
[400561525,1767720644116,-608.0,0.00023321,2]
[400561526,1767720644125,-608.0,0.00023334,2]
[400561527,1767720644135,-10115.60945091,0.00023337,2]
[400561528,1767720644145,-2100.0,0.00023337,2]
[400561529,1767720644155,-608.0,0.00023338,2]
[400561530,1767720644164,-2100.0,0.00023346,2]
[400561531,1767720644174,-2100.0,0.00023348,2]
[400561532,1767720644183,-2100.0,0.00023396,2]
[400561533,1767720644192,-608.0,0.000234,2]
[400561534,1767720644202,-2100.0,0.00023508,2]
[400561535,1767720644211,-151.0,0.00023508,2]
[400561536,1767720644221,-151.0,0.00023508,2]
[400561537,1767720644230,-151.0,0.00023508,2]
[400561538,1767720644239,-151.0,0.00023508,2]
[400561539,1767720644248,-151.0,0.00023508,2]
[400561540,1767720644257,-151.0,0.00023508,2]
[400561541,1767720644267,-151.0,0.00023508,2]
[400561542,1767720644279,-183.3,0.00023529,2]
[400561543,1767720644288,-500.0,0.00023546,2]
[400561544,1767720644297,-2436.38343228,0.00023547,2]
[400561545,1767720644307,-500.0,0.00023555,2]
[400561546,1767720644316,-600.0,0.00023562,2]
[400561547,1767720644326,-608.0,0.00023585,2]
[400561548,1767720644337,-2436.38343228,0.00023589,2]
[400561549,1767720644347,-500.0,0.00023601,2]
[400561550,1767720644356,-11034.61992398,0.00023639,2]
[400561551,1767720644366,-500.0,0.0002364,2]
[400561552,1767720644375,-500.0,0.00023641,2]
[400561553,1767720644384,-608.0,0.00023648,2]
[400561554,1767720644395,-44996.3333983,0.0002367,2]
[400561555,1767720644405,-836.7626739,0.0002367,2]
[400561556,1767720644415,-176.133271,0.0002367,2]
[400561557,1767720644425,-153.743312,0.0002367,2]
[400561558,1767720644435,-5000.0,0.0002367,2]
[400561559,1767720644444,-5000.0,0.0002367,2]
[400561560,1767720644454,-5000.0,0.0002367,2]
[400561561,1767720644463,-5000.0,0.0002367,2]
[400561562,1767720644473,-151.0,0.0002367,2]
[400561563,1767720644483,-618.008304,0.0002367,2]
[400561564,1767720644493,-618.008304,0.0002367,2]
[400561565,1767720644506,-151.0,0.0002367,2]
[400561566,1767720644516,-618.008304,0.0002367,2]
[400561567,1767720644525,-618.008304,0.0002367,2]
[400561568,1767720644537,-286.600994,0.0002367,2]
[400561569,1767720644547,-151.0,0.0002367,2]
[400561570,1767720644557,-151.0,0.0002367,2]
[400561571,1767720644567,-151.0,0.0002367,2]
[400561572,1767720644580,-441.104087,0.0002367,2]
[400561573,1767720644590,-441.104087,0.0002367,2]
[400561574,1767720644599,-221.765393,0.0002367,2]
[400561575,1767720644609,-441.104087,0.0002367,2]
[400561576,1767720644618,-441.104087,0.0002367,2]
[400561577,1767720644628,-176.786529,0.0002367,2]
[400561578,1767720644637,-176.786529,0.0002367,2]
[400561579,1767720644646,-176.786529,0.0002367,2]
[400561580,1767720644655,-176.786529,0.0002367,2]
[400561581,1767720644664,-162.040453,0.0002367,2]
[400561582,1767720644673,-151.0,0.0002367,2]
[400561583,1767720644681,-151.0,0.0002367,2]
[400561584,1767720644691,-151.0,0.0002367,2]
[400561585,1767720644700,-2760.87,0.000237,14]
[400561586,1767720644710,-2100.0,0.00023701,2]
[400561587,1767720644719,-2100.0,0.00023717,2]
[400561588,1767720644729,-2100.0,0.00023738,2]
[400561589,1767720644738,-500.0,0.00023744,2]
[400561590,1767720644747,-24466.81,0.000238,2]
[400561591,1767720644756,-608.0,0.00023817,2]
[400561592,1767720644765,-608.0,0.00023831,2]
[400561593,1767720644775,-2436.38343228,0.00023874,2]
[400561594,1767720644783,-2100.0,0.00023884,2]
[400561595,1767720644792,-188.11386458,0.00023901,2]
[400561596,1767720644801,-2100.0,0.00023943,2]
[400561597,1767720644811,-608.0,0.00023952,2]
[400561598,1767720644821,-2100.0,0.00023957,2]
[400561599,1767720644833,-608.0,0.00023995,2]
[400561600,1767720644842,-2000.0,0.00023999,7]
[400561601,1767720644852,-43901.28444321,0.00024,2]
[400561602,1767720644861,-1734.56052203,0.00024,2]
[400561603,1767720644871,-465.40086912,0.00024,2]
[400561604,1767720644880,-618.86,0.00024,14]
[400561605,1767720644889,-1041.66666667,0.00024,7]
[400561606,1767720644898,-608.0,0.00024092,2]
[400561607,1767720644909,-305.51,0.000241,2]
[400561608,1767720644919,-228.78,0.000241,7]
[400561609,1767720644929,-268.84,0.000241,7]
[400561610,1767720644939,-2100.0,0.00024105,2]
[400561611,1767720644949,-750.0,0.0002411,2]
[400561612,1767720644958,-608.0,0.00024116,2]
[400561613,1767720644966,-2100.0,0.00024118,2]
[400561614,1767720644975,-608.0,0.0002412,2]
[400561615,1767720644985,-511358.26965662,0.00024142,2]
[400561616,1767720644994,-263.925561,0.00024142,2]
[400561617,1767720645003,-151.0,0.00024142,2]
[400561618,1767720645014,-2436.38343228,0.00024142,2]
[400561619,1767720645023,-151.0,0.00024142,2]
[400561621,1767720645033,-151.0,0.00024142,2]
[400561623,1767720645042,-441.104087,0.00024142,2]
[400561625,1767720645051,-441.104087,0.00024142,2]
[400561626,1767720645060,-441.104087,0.00024142,2]
[400561627,1767720645070,-441.104087,0.00024142,2]
[400561628,1767720645079,-176.786529,0.00024142,2]
[400561629,1767720645089,-176.786529,0.00024142,2]
[400561630,1767720645098,-176.786529,0.00024142,2]
[400561631,1767720645108,-176.786529,0.00024142,2]
[400561632,1767720645117,-151.0,0.00024142,2]
[400561633,1767720645127,-151.0,0.00024142,2]
[400561634,1767720645137,-151.000002,0.00024142,2]
[400561635,1767720645146,-151.0,0.00024142,2]
[400561636,1767720645156,-151.0,0.00024142,2]
[400561637,1767720645166,-151.0,0.00024142,2]
[400561638,1767720645176,-151.0,0.00024142,2]
[400561639,1767720645185,-151.0,0.00024142,2]
[400561640,1767720645194,-170.332431,0.00024142,2]
[400561641,1767720645204,-151.0,0.00024142,2]
[400561642,1767720645213,-181.138598,0.00024164,2]
[400561643,1767720645222,-251.46189,0.00024164,2]
[400561644,1767720645232,-151.0,0.00024164,2]
[400561645,1767720645241,-501.631256,0.00024164,2]
[400561646,1767720645251,-151.0,0.00024164,2]
[400561647,1767720645260,-501.631256,0.00024164,2]
[400561648,1767720645270,-501.631256,0.00024164,2]
[400561649,1767720645279,-501.631256,0.00024164,2]
[400561650,1767720645288,-151.0,0.00024164,2]
[400561651,1767720645298,-151.0,0.00024164,2]
[400561652,1767720645307,-151.0,0.00024164,2]
[400561653,1767720645316,-151.0,0.00024164,2]
[400561654,1767720645325,-151.0,0.00024164,2]
[400561655,1767720645336,-258.099142,0.00024164,2]
[400561656,1767720645346,-258.099142,0.00024164,2]
[400561657,1767720645356,-258.099142,0.00024164,2]
[400561658,1767720645365,-258.099142,0.00024164,2]
[400561659,1767720645374,-151.0,0.00024164,2]
[400561660,1767720645383,-246.520699,0.00024164,2]
[400561661,1767720645393,-246.520699,0.00024164,2]
[400561662,1767720645403,-246.520699,0.00024164,2]
[400561663,1767720645412,-246.520699,0.00024164,2]
[400561664,1767720645421,-151.0,0.00024164,2]
[400561665,1767720645431,-151.0,0.00024164,2]
[400561666,1767720645440,-178.486087,0.00024164,2]
[400561667,1767720645450,-151.0,0.00024164,2]
[400561668,1767720645459,-151.0,0.00024164,2]
[400561669,1767720645468,-170.976512,0.00024164,2]
[400561670,1767720645477,-178.486087,0.00024164,2]
[400561671,1767720645487,-151.0,0.00024164,2]
[400561672,1767720645500,-151.0,0.00024164,2]
[400561673,1767720645509,-178.486087,0.00024164,2]
[400561674,1767720645519,-151.0,0.00024164,2]
[400561675,1767720645529,-178.486087,0.00024164,2]
[400561676,1767720645539,-151.0,0.00024164,2]
[400561677,1767720645548,-151.0,0.00024164,2]
[400561678,1767720645558,-166.442051,0.00024164,2]
[400561679,1767720645569,-166.442051,0.00024164,2]
[400561680,1767720645579,-166.442051,0.00024164,2]
[400561681,1767720645588,-166.442051,0.00024164,2]
[400561682,1767720645598,-151.0,0.00024164,2]
[400561683,1767720645608,-151.0,0.00024164,2]
[400561684,1767720645618,-151.0,0.00024164,2]
[400561685,1767720645628,-158.624878,0.00024164,2]
[400561686,1767720645637,-2100.0,0.00024189,2]
[400561687,1767720645646,-608.0,0.00024219,2]
[400561688,1767720645656,-1000.0,0.00024273,10]
[400561689,1767720645665,-791.0,0.00024273,10]
[400561690,1767720645674,-500.0,0.00024285,2]
[400561691,1767720645684,-877.91408542,0.00024286,19]
[400561692,1767720645693,-500.0,0.00024306,2]
[400561693,1767720645703,-500.0,0.00024326,2]
[400561694,1767720645712,-500.0,0.00024365,2]
[400561695,1767720645721,-2100.0,0.00024367,2]
[400561696,1767720645730,-608.0,0.00024405,2]
[400561697,1767720645739,-500.0,0.00024451,2]
[400561698,1767720645748,-500.0,0.00024511,2]
[400561699,1767720645757,-172.0,0.00024521,13]
[400561700,1767720645766,-500.0,0.00024556,2]
[400561701,1767720645776,-500.0,0.00024608,2]
[400561702,1767720645786,-2100.0,0.00024616,2]